[Event "67th Mexican-ch Open 2022"]
[Site "Chihuahua"]
[Date "2022.04.16"]
[Round "7.20"]
[White "Pena Davalos, David"]
[Black "Hernandez Guerrero, Eduardo"]
[Result "0-1"]
[ECO "A34"]
[WhiteElo "1761"]
[BlackElo "2232"]
[Annotator "TA"]
[PlyCount "86"]
[EventDate "2022.04.12"]
[EventType "swiss"]
[EventCountry "MEX"]
[SourceTitle "playchess.com"]
[Source "ChessBase"]
[SourceQuality "1"]
[TimeControl "5400+30"]

{[%evp 9,86,6,54,35,69,14,21,29,22,28,30,20,25,6,10,0,0,0,7,-13,7,4,13,-18,15,-22,0,0,0,0,0,-46,-38,-71,0,0,0,-69,-58,-52,-57,-59,-63,-58,-63,-68,-37,-30,-37,-39,-54,-48,-39,-54,-41,-117,-118,-95,-99,-142,-117,-276,-245,-267,-269,-304,-218,-219,-196,-745,-711,-629,-567,-4408,-2700,-6195,-6195,-5493,-5402]} 1. Nf3 {[%emt 0:01:14]} Nf6 {[%emt 0:00:29]} 2. c4 {[%emt 0:00:11]} e6 {[%emt 0:00:30]} 3. Nc3 {[%emt 0:04:15]} c5 {[%emt 0:00:13]} 4. e3 {[%emt 0:03:25]} b6 {[%emt 0:04:51]} 5. Be2 {[%emt 0:01:55]} d6 {[%emt 0:02:16]} (5... Be7 $11) 6. O-O {[%emt 0:00:16] A34: Symmetrical English: 2 Nc3, lines with ...d5.} (6. d4 {keeps more tension.} d5 7. Ne5 Bd6 8. Qa4+) 6... Nbd7 {[%emt 0:00:04]} 7. b3 {[%emt 0:01:11]} (7. d4 $14) 7... Bb7 $11 {[%emt 0:02:44]} 8. Bb2 {[%emt 0:00:23] The position is equal.} Be7 {[%emt 0:00:06]} 9. d4 {[%emt 0:02:57]} a6 {[%emt 0:00:06]} 10. Re1 {[%emt 0:03:10]} O-O {[%emt 0:00:09]} 11. Nd2 {[%emt 0:04:35] [#]} Rb8 $146 {[%emt 0:03:15]} ({Predecessor:} 11... cxd4 12. exd4 d5 13. Rc1 Ra7 14. Bf3 Bd6 15. g3 Ba8 {½-½ (15) Krak,T (2266)-Zambor,N (2252) Slovakia 2018}) 12. a4 {[%emt 0:03:26]} d5 {[%emt 0:01:31]} 13. Nf3 {[%emt 0:03:57]} Bd6 {[%emt 0:01:08]} 14. Rc1 {[%emt 0:04:26]} Re8 {[%emt 0:00:08]} 15. cxd5 {[%emt 0:05:17]} exd5 {[%emt 0:00:10]} 16. Rc2 {[%emt 0:01:07]} Ne4 {[%emt 0:12:45]} 17. dxc5 {[%emt 0:07:17]} Ndxc5 {[%emt 0:00:10]} 18. b4 {[%emt 0:13:15]} Nxc3 {[%emt 0:01:26]} 19. Bxc3 {[%emt 0:00:30]} Ne4 {[%emt 0:00:28]} 20. Bd2 {[%emt 0:04:04]} (20. Qb1 $11) 20... Re6 $15 {[%emt 0:04:42]} 21. g3 {[%emt 0:02:42]} Rf6 {[%emt 0:02:06]} (21... Rh6 $17) 22. Rf1 $11 {[%emt 0:05:56]} Qd7 {[%emt 0:00:48] Strongly threatening ...Qh3.} 23. Bc3 {[%emt 0:03:55]} (23. Nd4 $1 $11) 23... Nxc3 $15 {[%emt 0:14:55]} 24. Rxc3 {[%emt 0:00:54]} Bxb4 {[%emt 0:00:17]} 25. Rc1 {[%emt 0:01:18]} Re8 {[%emt 0:03:40][%cal Od5d4]} 26. Nd4 {[%emt 0:03:23]} Bc5 $36 {[%emt 0:00:15][%mdl 2048] Black is pushing.} 27. a5 {[%emt 0:01:08]} Qe7 {[%emt 0:06:11]} (27... Ba3 $5 {[%cal Ra3c1]} 28. Ra1 Bb2 $17) 28. axb6 {[%emt 0:01:05]} Bxb6 {[%emt 0:00:21]} 29. Rb1 {[%emt 0:00:19]} Bc8 {[%emt 0:00:13]} 30. Bg4 {[%emt 0:00:54] Against Bh3} Qe4 {[%emt 0:01:13]} 31. Bxc8 {[%emt 0:01:29]} Rxc8 {[%emt 0:00:07]} 32. Rc1 {[%emt 0:00:46]} ({White should play} 32. Ne2 $15) 32... Rxc1 $17 {[%emt 0:00:20] &Nero is more active.} 33. Qxc1 {[%emt 0:00:10] [#] Intending Qc8+ and mate.} h5 {[%emt 0:00:15]} 34. Qc8+ {[%emt 0:03:44]} Kh7 {[%emt 0:00:09]} 35. Qh3 $2 {[%emt 0:00:10] Loses the game.} (35. Qc3 $17) 35... Bxd4 $19 {[%emt 0:02:06]} 36. exd4 {[%emt 0:00:38][%mdl 4096] Endgame KQR-KQR} g6 {[%emt 0:00:06]} ({Not} 36... Qxd4 37. Qxh5+ Kg8 38. Qd1 $15) 37. Rd1 {[%emt 0:01:41]} Qe2 {[%emt 0:01:34][%csl LRd1,LRf2]} 38. Qf1 {[%emt 0:01:22]} Rxf2 {[%emt 0:00:21]} 39. Qxf2 {[%emt 0:00:12]} (39. Qxe2 Rxe2 40. Ra1) 39... Qxd1+ {[%emt 0:00:05] Black is clearly winning.} 40. Kg2 {[%emt 0:00:06]} Kg7 {[%emt 0:00:07] [#] Hoping for ...a5.} 41. Qf4 {[%emt 0:00:20]} Qe2+ {[%emt 0:00:14]} 42. Kg1 {[%emt 0:00:18]} Qe1+ {[%emt 0:00:28]} 43. Kg2 {[%emt 0:00:21]} Qe4+ {[%emt 0:00:07] Weighted Error Value: White=0.65/Black=0.09 (flawless)} 0-1

[Event "67th Mexican-ch Open 2022"]
[Site "Chihuahua"]
[Date "2022.04.16"]
[Round "7.21"]
[White "Luna Javier, Edgar Froylan"]
[Black "Martinez Martinez, Ian Alf"]
[Result "1-0"]
[ECO "D02"]
[WhiteElo "2148"]
[BlackElo "1821"]
[Annotator "TA"]
[PlyCount "75"]
[EventDate "2022.04.12"]
[EventType "swiss"]
[EventCountry "MEX"]
[SourceTitle "playchess.com"]
[Source "ChessBase"]
[SourceQuality "1"]
[TimeControl "5400+30"]

{[%evp 9,75,-17,18,-11,30,20,43,40,54,36,43,10,106,23,113,92,91,103,125,62,125,131,217,208,197,150,243,201,202,221,206,136,170,143,153,154,284,318,447,440,448,300,285,95,195,173,675,672,678,667,601,171,164,162,193,73,70,76,83,84,73,79,86,87,80,0,431,379]} 1. Nf3 {[%emt 0:05:15]} Nf6 {[%emt 0:01:47]} 2. g3 {[%emt 0:00:07]} d5 {[%emt 0:00:09]} 3. Bg2 {[%emt 0:00:08]} Bg4 {[%emt 0:00:22]} 4. d4 {[%emt 0:01:19]} e6 {[%emt 0:00:58]} 5. h3 {[%emt 0:05:33]} Bh5 {[%emt 0:00:36]} (5... Bxf3 $5 6. Bxf3 c5 $11) 6. Ne5 {[%emt 0:00:49] [#] D02: 1 d4 d5 2 Nf3 sidelines, including 2...Nf6 3 g3 and 2...Nf6 3 Bf4.} Nfd7 $146 {[%emt 0:05:10]} ({Predecessor:} 6... Nbd7 7. g4 Bg6 8. Nxg6 hxg6 9. Nc3 c6 10. g5 Nh5 11. e4 Bd6 12. e5 Be7 {1-0 (20) Manis,J-Thornton,A IECG email 2002}) 7. Nd3 {[%emt 0:02:57][%cal Oc2c4]} f6 {[%emt 0:10:41]} 8. O-O {[%emt 0:02:04][%cal Oc2c4] White is slightly better.} Na6 {[%emt 0:05:50]} 9. Nf4 {[%emt 0:02:26]} Bf7 {[%emt 0:00:16]} 10. e4 {[%emt 0:00:30]} (10. c4 $5) 10... c6 {[%emt 0:15:00]} (10... dxe4 $1 $11 11. Bxe4 c6) 11. Re1 {[%emt 0:01:48]} (11. exd5 $16 exd5 12. Re1+ Be7 13. Qe2) 11... Be7 {[%emt 0:00:51]} (11... dxe4 $1 $11 12. Bxe4 e5) 12. exd5 $16 {[%emt 0:03:55]} exd5 {[%emt 0:00:33]} 13. Qe2 $1 $36 {[%emt 0:01:44][%mdl 2048] White has strong initiative.} Kf8 {[%emt 0:05:15]} 14. c4 {[%emt 0:06:17]} (14. h4 $16) 14... Nc7 {[%emt 0:05:48]} (14... dxc4 $14 15. Ne6+ Bxe6 16. Qxe6 Nb6) 15. cxd5 {[%emt 0:02:47] 0x0.001c68f4b568dp-1022s more active pieces.} cxd5 {[%emt 0:02:42]} (15... Nxd5 $16 16. Nxd5 cxd5) 16. Nc3 $18 {[%emt 0:00:40][%cal Rc3d5]} Nb6 {[%emt 0:02:38]} 17. a4 {[%emt 0:01:21]} ({White should try} 17. h4 $18) 17... Bb4 {[%emt 0:00:51]} (17... g5 $16 18. a5 Nc8) 18. Nd3 {[%emt 0:10:09]} Bxc3 {[%emt 0:16:11]} 19. bxc3 {[%emt 0:00:09] Black must now prevent Nc5.} Nc4 {[%emt 0:00:35]} 20. Nb2 {[%emt 0:04:13][%cal Bd3b2,Bb2d1,Bd1e3,Be3g4,Bg4f6][%mdl 32]} Nd6 {[%emt 0:02:47]} 21. Nd1 {[%emt 0:01:33]} Qd7 {[%emt 0:01:09]} 22. Ne3 {[%emt 0:01:29]} Be6 {[%emt 0:09:27]} (22... Kg8 $16 {was called for.} 23. Ba3 Re8) 23. Ba3 {[%emt 0:00:58] And now c4 would win.} Re8 {[%emt 0:02:40]} (23... Kg8 {might work better.} 24. Qa2 Nf7) 24. Rab1 {[%emt 0:05:17]} b6 {[%emt 0:02:33]} 25. a5 {[%emt 0:02:17]} b5 {[%emt 0:01:03]} 26. a6 $2 {[%emt 0:03:43]} (26. c4 $18 {and White stays clearly on top.} bxc4 27. Rb7) 26... g6 {[%emt 0:02:11]} (26... h5 $16 {is a better defense.}) 27. Ng4 {[%emt 0:05:46]} Kg7 {[%emt 0:00:27] [#]} (27... Bxg4 28. Qxg4 Rd8) 28. Nxf6 $1 {[%emt 0:01:26][%mdl 512]} Kxf6 {[%emt 0:01:55]} 29. Qe5+ {[%emt 0:00:01]} Ke7 {[%emt 0:01:14][%cal Bf6e7,Be7f7,Bf7g7][%mdl 32]} 30. Bxd5 $2 {[%emt 0:00:51]} (30. c4 {[%cal Rc4d5]} Rhf8 31. c5) 30... Nxd5 {[%emt 0:01:37]} 31. Qxd5 {[%emt 0:00:01]} Rd8 {[%emt 0:00:39]} 32. Rxb5 {[%emt 0:04:10] Really sharp!} (32. g4 $1 $18 {is more deadly.}) 32... Kf7 $16 {[%emt 0:00:35][%csl LRb5,LRd5]} 33. Qf3+ {[%emt 0:01:50][%mdl 1024] White has compensation.} Kg7 {[%emt 0:00:27] [#]} (33... Kg8 $2 34. Rbe5 Rf8 35. Qxf8+ $3 {[%mdl 512]} Kxf8 36. Rxe6 $18) 34. Rbe5 {[%emt 0:04:12][%cal Bb5e5,Be5e7,Be7b7][%mdl 32]} Rhf8 {[%emt 0:00:45]} 35. Qe2 {[%emt 0:02:41]} Bf7 {[%emt 0:00:46]} 36. Re7 {[%emt 0:03:37][%mdl 64] Skewer} Qb5 {[%emt 0:00:47] [#]} 37. Qe6 {[%emt 0:02:26] Prevents Qd5.} ({Weaker is} 37. Rxa7 Rfe8 38. Qd1 (38. Rxf7+ Kxf7 39. Qf3+ Qf5 $17) 38... Nc8 39. Rxe8 Rxe8 $15) (37. Bb4 $1 $16 {Qe5+ is the strong threat.} Qxe2 38. R1xe2) 37... Nc8 $2 {[%emt 0:00:51][%mdl 8192]} (37... Kg8 $11 38. Qf6 Qf5 39. Qxf5 gxf5) 38. Rb7 {[%emt 0:01:33] Weighted Error Value: White=0.57/Black=0.69} 1-0

[Event "67th Mexican-ch Open 2022"]
[Site "Chihuahua"]
[Date "2022.04.16"]
[Round "7.22"]
[White "Kowalski Davila, Emilio Luis"]
[Black "Palma Villanueva, Miguel Ta"]
[Result "0-1"]
[ECO "E90"]
[WhiteElo "1735"]
[BlackElo "2210"]
[Annotator "TA"]
[PlyCount "174"]
[EventDate "2022.04.12"]
[EventType "swiss"]
[EventCountry "MEX"]
[SourceTitle "playchess.com"]
[Source "ChessBase"]
[SourceQuality "1"]
[TimeControl "5400+30"]

{[%evp 18,174,89,84,60,32,74,78,88,66,76,68,102,63,64,59,80,55,91,77,110,77,115,78,70,70,83,68,119,118,136,87,104,113,122,82,210,208,217,191,271,141,120,31,22,91,121,0,33,50,52,43,54,-185,0,-6,0,0,112,117,163,163,167,160,208,207,200,173,104,104,289,208,162,180,314,0,231,199,729,193,215,203,484,429,1460,1495,1271,349,287,327,395,360,347,195,335,320,278,133,133,125,239,135,242,242,222,222,181,185,4133,0,0,0,8,0,0,-389,-389,-381,-374,-367,-367,-367,-367,-360,-360,-359,-337,-331,-323,-315,-315,-237,-222,-414,-334,-5054,-4999,-4524,-4095,-5054,-4812,-3687,-3629,-3375,-3273,-3155,-2386,-2322,-2128,-1695,-1377,-2928,-2508,-1940,-1759,-29967,-29969,-29981,-29982]} 1. d4 {[%emt 0:00:04]} Nf6 {[%emt 0:00:07]} 2. c4 {[%emt 0:00:05]} g6 {[%emt 0:00:04]} 3. Nf3 {[%emt 0:00:07]} Bg7 {[%emt 0:00:04]} 4. Nc3 {[%emt 0:00:07]} O-O {[%emt 0:00:09]} 5. e4 {[%emt 0:00:03]} d6 {[%emt 0:00:10]} 6. h3 {[%emt 0:00:12]} c5 {[%emt 0:00:29]} 7. d5 {[%emt 0:00:09]} e6 {[%emt 0:00:16]} 8. Bd3 {[%emt 0:00:28]} exd5 {[%emt 0:00:12]} 9. exd5 {[%emt 0:00:12]} Na6 {[%emt 0:05:31]} 10. O-O $1 {[%emt 0:01:01]} Nc7 {[%emt 0:00:37] E90: King's Indian: Classical: Early deviations and 6 h3.} 11. a4 {[%emt 0:01:29]} Rb8 {[%emt 0:04:33]} 12. Bg5 {[%emt 0:02:45]} h6 {[%emt 0:07:36] [#] White is better.} 13. Bf4 $146 {[%emt 0:05:52]} ({Predecessor:} 13. Be3 b6 14. Qd2 Kh7 15. g4 Ng8 16. Nh2 f5 17. Ne2 a6 18. Ra2 b5 19. axb5 axb5 {½-½ (39) Thorarinsson,P (2274)-Cajbel,M (2208) Warsaw 2016}) 13... Nh5 {[%emt 0:07:06]} 14. Bh2 {[%emt 0:05:25]} a6 {[%emt 0:08:30]} 15. a5 {[%emt 0:08:27]} b5 {[%emt 0:04:39] Against Na4} 16. axb6 {[%emt 0:00:23]} Rxb6 {[%emt 0:00:02]} 17. Qd2 {[%emt 0:01:18]} Bd7 {[%emt 0:05:27]} 18. Rfb1 {[%emt 0:04:42]} Qc8 {[%emt 0:09:12]} 19. Ra3 {[%emt 0:08:58]} Rd8 {[%emt 0:02:20]} 20. Qc2 {[%emt 0:03:01]} Ne8 {[%emt 0:06:56]} 21. Nd2 {[%emt 0:07:02]} Qb7 {[%emt 0:08:03]} 22. Kh1 {[%emt 0:15:47]} Kh7 {[%emt 0:04:39]} (22... Rb8 $14) 23. f4 $16 {[%emt 0:01:34]} Rb8 {[%emt 0:00:59][%cal Rb6b2]} 24. b3 {[%emt 0:00:49]} (24. f5 $142 {[%cal Rf5g6]} gxf5 25. Bxf5+ Kg8 26. Bh7+ Kh8 27. Ra2) 24... Qc8 {[%emt 0:01:10][%cal Od7h3]} 25. g4 {[%emt 0:04:21]} Nhf6 {[%emt 0:01:04]} 26. Rg1 {[%emt 0:03:11]} Nxg4 {[%emt 0:03:51]} 27. hxg4 $18 {[%emt 0:00:10]} (27. Rxg4 Bxg4 28. hxg4 Qxg4 $11) 27... Bxg4 {[%emt 0:00:24]} 28. Rg3 {[%emt 0:04:26]} Nf6 {[%emt 0:01:37]} (28... Bf6 {was necessary.} 29. Nd1 Ng7) 29. Ra1 {[%emt 0:01:10]} (29. f5 $18) 29... Nh5 $16 {[%emt 0:06:05][%cal Ob6b3]} 30. Re3 {[%emt 0:03:27]} (30. Rg2 $1 $16) 30... Bd4 $14 {[%emt 0:00:55]} 31. Re7 {[%emt 0:01:20][%csl LRf7,LRg6]} R6b7 {[%emt 0:01:15]} 32. Rae1 {[%emt 0:02:03]} (32. Bxg6+ $1 $16 Kh8 33. Rxf7 Rxf7 34. Bxf7) 32... Ng7 {[%emt 0:02:30][%cal Ob7b3] Chess con chili.} 33. Rxb7 {[%emt 0:02:10]} Rxb7 {[%emt 0:00:19]} 34. Nce4 $1 {[%emt 0:00:17]} Qd8 {[%emt 0:00:07] Hoping for ...f5.} 35. Bg3 $2 {[%emt 0:01:14]} (35. Be2 $1 $14 {was forced to keep a grip.} Qh4 36. Qd1) 35... Nf5 $2 {[%emt 0:00:57]} (35... Nh5 $19 36. Kg2 f5) 36. Kh2 {[%emt 0:04:49]} (36. Kg2 $5 {[%cal Rg3f2]}) 36... Re7 {[%emt 0:01:45]} 37. Be2 {[%emt 0:01:41]} Bxe2 {[%emt 0:06:49]} (37... Nxg3 $11 {keeps the balance.} 38. Kxg3 (38. Bxg4 Nxe4 39. Rxe4 Rxe4 $17) 38... Bc8) 38. Rxe2 $16 {[%emt 0:00:12]} Nxg3 {[%emt 0:00:28]} (38... Rb7 $16 39. Qd3 h5) 39. Kxg3 $18 {[%emt 0:00:55]} (39. Nxg3 $2 Rxe2+ 40. Kh3 Re3 $19) 39... f5 {[%emt 0:00:10]} 40. Nc3 {[%emt 0:00:54]} Bxc3 {[%emt 0:00:17]} (40... Kg8 $16 41. Nf3 Bf6 42. Rxe7 Qxe7) 41. Rxe7+ {[%emt 0:00:10]} Qxe7 {[%emt 0:00:06]} 42. Qxc3 {[%emt 0:00:12]} Qe1+ {[%emt 0:00:02]} 43. Kf3 $1 {[%emt 0:00:44]} Qh1+ $2 {[%emt 0:00:39]} (43... g5 $16) 44. Ke2 {[%emt 0:00:15]} Qh2+ {[%emt 0:00:11]} 45. Ke3 $1 {[%emt 0:03:38]} Qg1+ {[%emt 0:00:36]} (45... g5 $142) 46. Ke2 $2 {[%emt 0:00:20]} (46. Kd3 $18) 46... Qg4+ $2 {[%emt 0:00:24]} (46... Qh2+ $1 $11 {and Black stays safe.} 47. Ke3 Qg1+ 48. Kd3 Qg3+ 49. Kc2 Qxf4) 47. Qf3 {[%emt 0:00:35]} Qh4 {[%emt 0:00:28]} (47... Qxf3+ 48. Nxf3 Kg7) 48. Nf1 $2 {[%emt 0:01:18]} (48. b4) 48... Qf6 {[%emt 0:00:27]} 49. Qe3 {[%emt 0:00:23][%cal Ob3b4]} Qh4 $2 {[%emt 0:00:53]} (49... Kg7 50. Qe8 g5) 50. Nd2 {[%emt 0:01:05][%cal Ob3b4]} Qg4+ {[%emt 0:01:14]} (50... a5 $142 51. Qe6 Qxf4 52. Qf7+ Kh8 53. Qxg6 h5 54. Qxh5+ (54. Nf3 Qe4+ 55. Kd2 Qxf3 $11) 54... Kg7) 51. Kd3 {[%emt 0:00:15]} Qh4 {[%emt 0:00:12] Prevents Qe7+.} 52. Kc3 $2 {[%emt 0:00:46]} (52. b4) 52... Qf6+ {[%emt 0:01:19]} 53. Kc2 $1 {[%emt 0:00:12][%cal Ob3b4] Strongly threatening b4!} g5 {[%emt 0:00:29]} 54. fxg5 {[%emt 0:00:12]} hxg5 {[%emt 0:00:07]} 55. Nf3 {[%emt 0:01:24]} (55. Nf1 $142) 55... f4 {[%emt 0:01:39]} (55... Kh6 $142 56. Ne1 Kg6) 56. Qe4+ {[%emt 0:01:13]} (56. Qe6 Kg7 57. Kd3 Qxe6 58. dxe6 g4 $16) 56... Kg7 {[%emt 0:00:24]} 57. Kd3 {[%emt 0:00:43]} (57. Nh2 $18 {is more deadly.}) 57... g4 $16 {[%emt 0:01:04] [#]} 58. Nd2 {[%emt 0:01:08] Qe8 is the strong threat.} a5 {[%emt 0:00:47]} (58... Kf8 $16 {is a better defense.} 59. Qh7 Qg5) 59. Kc2 {[%emt 0:01:20]} ({White should play} 59. Qe8 $18) 59... Qg6 {[%emt 0:00:38] [#]} (59... Qf7 $16 {was called for.} 60. Kd3 g3) 60. Qxg6+ $1 $18 {[%emt 0:01:02]} Kxg6 {[%emt 0:00:01][%mdl 4096] Endgame KN-KP} 61. Kd3 {[%emt 0:00:10]} Kf5 {[%emt 0:00:10]} 62. Ne4 {[%emt 0:01:05]} Ke5 $2 {[%emt 0:00:20]} (62... g3 63. Nxd6+ Ke5) 63. Nf2 $2 {[%emt 0:00:29]} ({White has to play} 63. Nc3 $18 Kf5 64. Ke2) 63... Kf5 $1 $11 {[%emt 0:01:48]} (63... g3 $2 64. Ne4 $18) 64. Ke2 {[%emt 0:00:02] Black must now prevent Nd1.} g3 {[%emt 0:00:29]} 65. Nd3 {[%emt 0:01:59] Threatens to win with Kf3.} Ke4 {[%emt 0:00:35]} (65... g2 $5 66. Kf2 f3 $11) 66. Nxc5+ $2 {[%emt 0:00:49][%mdl 8192] Black converts the advantage convincingly.} dxc5 {[%emt 0:00:11] KP-KP} 67. d6 {[%emt 0:00:06] Intending d7 and mate.} f3+ {[%emt 0:00:03]} 68. Kf1 {[%emt 0:00:14] White threatens d7 and mate.} Ke3 {[%emt 0:00:24]} 69. d7 {[%emt 0:00:29]} g2+ {[%emt 0:00:07]} 70. Kg1 {[%emt 0:00:17]} f2+ {[%emt 0:00:31]} ({Don't blunder} 70... Ke2 $2 71. d8=Q f2+ 72. Kxg2 f1=Q+ 73. Kg3 (73. Kh2 $2 Qf4+ 74. Kg2 Qf3+ 75. Kh2 Qxb3 $19) 73... Qf3+ 74. Kh4 Qxb3 75. Qxa5 Qxc4+ 76. Kh5 $19) 71. Kxg2 $19 {[%emt 0:00:08] K3P-K3P} Ke2 {[%emt 0:00:01]} 72. d8=Q {[%emt 0:00:29] White wants to mate with Qe8+.} f1=Q+ {[%emt 0:00:06] KQ-KQ} 73. Kg3 {[%emt 0:00:31]} Qf3+ {[%emt 0:00:32]} 74. Kh4 {[%emt 0:00:18]} Qxb3 {[%emt 0:00:21]} 75. Qd5 $2 {[%emt 0:00:48]} (75. Qxa5 Qxc4+ 76. Kh5) 75... Qe3 {[%emt 0:00:41]} 76. Kg4 $2 {[%emt 0:02:40]} (76. Qd7) 76... a4 {[%emt 0:00:28]} 77. Qg2+ {[%emt 0:00:28]} Kd3 {[%emt 0:00:09]} 78. Kf5 {[%emt 0:00:51] Against Qe4+} Kxc4 {[%emt 0:01:03]} 79. Qc2+ {[%emt 0:00:35]} Kb5 {[%emt 0:00:28]} 80. Qb2+ {[%emt 0:00:32]} Qb3 {[%emt 0:00:10]} 81. Qe2+ {[%emt 0:00:13]} Qc4 {[%emt 0:00:40]} 82. Qb2+ {[%emt 0:00:15]} Qb4 {[%emt 0:00:08]} 83. Qe2+ {[%emt 0:00:05]} Ka5 {[%emt 0:00:45] And now ...c4 would win.} 84. Qe5 {[%emt 0:00:40]} a3 {[%emt 0:00:50][%cal Ba4a3,Ba3a2][%mdl 32] ( -> ...a2)} 85. Qd5 {[%emt 0:02:42]} Qd4 {[%emt 0:01:29]} 86. Qb3 {[%emt 0:02:28]} Qb2 {[%emt 0:00:23]} 87. Qc4 {[%emt 0:00:10]} a2 {[%emt 0:00:18] Weighted Error Value: White=0.64/Black=0.58} 0-1

[Event "67th Mexican-ch Open 2022"]
[Site "Chihuahua"]
[Date "2022.04.16"]
[Round "7.23"]
[White "Gongora Montes, Benjamin"]
[Black "Villanueva De Leon, Vanessa"]
[Result "1-0"]
[ECO "A57"]
[WhiteElo "2157"]
[BlackElo "1729"]
[Annotator "TA"]
[PlyCount "53"]
[EventDate "2022.04.12"]
[EventType "swiss"]
[EventCountry "MEX"]
[SourceTitle "playchess.com"]
[Source "ChessBase"]
[SourceQuality "1"]
[TimeControl "5400+30"]

{[%evp 25,53,62,78,73,87,31,88,43,127,138,141,108,237,241,364,372,629,622,658,643,1814,1765,1672,471,428,358,29995,29996,29996,29997]} 1. d4 {[%emt 0:10:09]} Nf6 {[%emt 0:02:58]} 2. c4 {[%emt 0:00:06][%cal Bc2c4,Bc4b5][%mdl 32]} c5 {[%emt 0:00:07]} 3. d5 {[%emt 0:00:04]} b5 {[%emt 0:00:11]} 4. cxb5 {[%emt 0:00:08]} g6 {[%emt 0:00:58]} 5. Nc3 {[%emt 0:00:05]} Bg7 {[%emt 0:00:24]} 6. e3 {[%emt 0:00:05]} O-O {[%emt 0:00:50]} 7. Nf3 {[%emt 0:00:03]} a6 {[%emt 0:02:10]} 8. a4 {[%emt 0:00:17]} axb5 {[%emt 0:01:59]} 9. Bxb5 {[%emt 0:00:08]} Ba6 {[%emt 0:00:50]} 10. O-O {[%emt 0:00:08]} d6 {[%emt 0:08:21]} 11. Re1 {[%emt 0:00:07]} Bxb5 {[%emt 0:02:19]} 12. Nxb5 {[%emt 0:00:09]} Na6 {[%emt 0:00:41]} 13. e4 {[%emt 0:00:47]} Nd7 {[%emt 0:02:08]} 14. Qe2 {[%emt 0:04:08] [#] &Bianco is more active. A57: Benko/Volga Gambit.} Nb4 $146 {[%emt 0:02:30]} ({Predecessor:} 14... Nc7 15. Bg5 Nxb5 16. axb5 Rb8 17. Ra7 Re8 18. Rea1 Nb6 19. R1a6 Nc8 20. Ra8 Rb7 21. e5 dxe5 {0-1 (35) Ivanovic,M (2269)-Soto,M (2283) Corum 2019}) 15. Bg5 {[%emt 0:00:39]} ({White should play} 15. Ra3 $16) 15... h6 {[%emt 0:06:00]} ({Better is} 15... Nb6 $14) 16. Bf4 {[%emt 0:00:07][%cal Bg5f4,Bf4d2,Bd2c3][%mdl 32] White is better.} Qa5 {[%emt 0:04:33]} (16... Nb6 $14) 17. Bd2 $1 $16 {[%emt 0:03:15]} Rfb8 {[%emt 0:05:03]} 18. Bc3 {[%emt 0:00:40]} c4 {[%emt 0:04:09] This move loses the game for Black.} (18... Bxc3 $16 19. bxc3 Nc2 20. Qxc2 Rxb5) 19. Nfd4 $18 {[%emt 0:01:33]} ({But not} 19. Qxc4 $6 Bxc3 20. Qxc3 Rc8 $16) 19... Bxd4 {[%emt 0:06:45]} (19... Rxb5 {is a better defense.} 20. Nxb5 Bxc3 21. bxc3 (21. Nxc3 Nd3 $18) 21... Nd3) 20. Nxd4 {[%emt 0:00:06]} ({Worse is} 20. Bxd4 Rxb5 21. Qxc4 Rbb8 $17) 20... Qc5 $2 {[%emt 0:00:49]} (20... Qd8 21. Bxb4 Rxb4) 21. Qd2 {[%emt 0:00:44]} Kh7 {[%emt 0:03:40]} 22. Re3 {[%emt 0:00:10]} Ne5 {[%emt 0:04:00]} 23. Rh3 {[%emt 0:00:19]} h5 {[%emt 0:00:29] [#]} 24. Qg5 {[%emt 0:02:14]} (24. Nf5 $142 $1 {[%mdl 512] Intending Qh6+ and mate.} Kg8 {[#]} 25. Qh6 $1 Qxf2+ 26. Kh1 Qxf5 27. exf5) 24... Nbd3 {[%emt 0:08:13]} 25. Rf1 {[%emt 0:02:49][%cal Od4f5] White threatens Nf5! and mate.} Nxb2 $2 {[%emt 0:03:12] [#]} (25... f6 $18 26. Qg3 Rg8) 26. Nf5 $1 {[%emt 0:00:12][%mdl 512]} Kg8 {[%emt 0:05:41] [#]} (26... Nf3+ 27. gxf3) 27. Qh6 $1 {[%emt 1:14:48] Weighted Error Value: White=0.43/Black=0.80} 1-0